bitfinex/quotes_SOLUSD_20251201
["timestamp","ask_amount","ask_price","bid_price","bid_amount"]
[1764608282777,9.43868426,123.7,123.67,9.0]
[1764608282956,9.43868426,123.7,123.66,0.67]
[1764608283152,9.43868426,123.7,123.66,9.40868426]
[1764608283372,0.7,123.7,123.67,8.73868426]
[1764608283574,0.7,123.7,123.67,9.40868426]
[1764608283781,8.78432097,123.7,123.67,9.40868426]
[1764608284878,8.78432097,123.7,123.67,0.67]
[1764608285174,8.76432097,123.7,123.66,8.73868426]
[1764608285395,16.82300523,123.7,123.66,8.73868426]
[1764608285565,9.41868426,123.69,123.66,0.67]
[1764608285882,92.50369981,123.69,123.65,26.4956473]
[1764608286063,91.82369981,123.69,123.65,16.8256473]
[1764608286269,9.41868426,123.68,123.65,8.08696304]
[1764608286468,9.41868426,123.68,123.65,8.75696304]
[1764608286961,0.68,123.68,123.65,8.75696304]
[1764608287366,9.41868426,123.68,123.65,8.75696304]
[1764608288470,4.27779964,123.68,123.65,8.75696304]
[1764608290183,4.27779964,123.68,123.65,0.67]
[1764608290384,0.68,123.68,123.65,8.75688357]
[1764608290582,0.68,123.68,123.65,12.35468321]
[1764608291089,8.76562735,123.68,123.65,0.67]
[1764608291393,0.68,123.68,123.65,0.67]
[1764608291767,12.3635211,123.68,123.64,12.59779964]
[1764608291989,12.3635211,123.68,123.65,0.67]
[1764608292184,8.76572146,123.68,123.65,4.26779964]
[1764608292579,0.68,123.68,123.65,4.26779964]
[1764608292966,86.68285181,123.69,123.64,17.08799015]
[1764608292967,0.68,123.67,123.64,17.08799015]
[1764608293167,78.59779964,123.69,123.65,3.59779964]
[1764608293491,0.68,123.68,123.65,4.26779964]
[1764608294588,0.68,123.68,123.65,0.67]
[1764608294772,0.68,123.68,123.65,4.26779964]
[1764608296799,3.59779964,123.68,123.64,17.08766175]
[1764608297091,3.59779964,123.68,123.66,0.67]
[1764608297502,11.6828413,123.69,123.66,0.67]
[1764608298191,12.3628413,123.69,123.66,0.67]
[1764608299287,0.68,123.69,123.66,0.67]
[1764608299496,4.27779964,123.69,123.66,0.67]
[1764608300579,0.68,123.69,123.66,0.67]
[1764608300791,4.27779964,123.69,123.66,0.67]
[1764608302096,8.08538163,123.68,123.66,0.67]
[1764608302273,11.68318127,123.68,123.66,0.67]
[1764608305597,8.08538163,123.68,123.66,0.67]
[1764608305795,8.76538163,123.68,123.66,0.67]
[1764608306096,8.08538163,123.68,123.66,0.67]
[1764608306987,12.36318127,123.68,123.66,0.67]
[1764608307492,8.08538163,123.68,123.66,0.67]
[1764608307907,31.89465054,123.69,123.66,0.67]
[1764608308106,32.57465054,123.69,123.66,0.67]
[1764608308278,12.36252758,123.69,123.66,0.67]
[1764608308998,3.59779964,123.68,123.66,0.67]
[1764608310398,11.68325892,123.68,123.66,0.67]
[1764608311089,8.08545928,123.68,123.66,0.67]
[1764608312212,11.68325892,123.68,123.66,0.67]
[1764608312389,8.76499359,123.69,123.66,0.67]
[1764608312591,28.97681346,123.69,123.66,0.67]
[1764608312778,3.59779964,123.67,123.64,9.66]
[1764608313104,3.59779964,123.67,123.65,0.69]
[1764608314514,81.28414492,123.66,123.61,0.69]
[1764608314678,5.62414492,123.64,123.61,0.69]
[1764608315081,96.93300892,123.66,123.61,6.31414492]
[1764608315299,97.59300892,123.66,123.61,6.31414492]
[1764608315496,97.59300892,123.66,123.62,0.69]
[1764608316006,5.62414492,123.65,123.62,0.69]
[1764608316227,97.59300892,123.66,123.62,0.69]
[1764608316506,30.68020033,123.66,123.62,0.69]
[1764608316678,13.71133633,123.66,123.62,8.7792695]
[1764608316882,13.71133633,123.66,123.62,0.69]
[1764608317082,14.37133633,123.66,123.63,0.69]
[1764608317509,5.62414492,123.65,123.63,0.69]
[1764608318392,13.7117119,123.65,123.63,0.69]
[1764608319783,13.7117119,123.65,123.61,8.08989603]
[1764608319784,14.3717119,123.65,123.61,0.69]
[1764608320081,5.62414492,123.64,123.62,0.69]
[1764608320408,13.71233885,123.64,123.62,0.69]
[1764608322001,5.62414492,123.63,123.6,0.69]
[1764608322302,5.62414492,123.62,123.6,0.69]
[1764608322704,5.62414492,123.62,123.59,17.19115243]
[1764608323016,6.28414492,123.62,123.59,9.1]
[1764608323314,5.62414492,123.61,123.59,9.79]
[1764608323897,13.71415064,123.61,123.59,9.79]
[1764608324212,13.71415064,123.61,123.59,0.79]
[1764608324399,8.09000572,123.61,123.59,0.79]
[1764608325196,8.08902615,123.63,123.59,6.41414492]
[1764608325402,14.37317107,123.63,123.59,14.50535296]
[1764608325599,54.276311,123.65,123.6,6.31414492]
[1764608325917,39.68089465,123.65,123.6,6.31414492]
[1764608326091,39.68089465,123.65,123.61,0.69]
[1764608326291,6.28414492,123.64,123.61,0.69]
[1764608326610,6.28414492,123.64,123.59,34.73352676]
[1764608326797,5.62414492,123.64,123.6,6.31414492]
[1764608326996,5.62414492,123.64,123.6,14.40430073]
[1764608327196,6.28414492,123.64,123.61,0.69]
[1764608328110,24.39674973,123.65,123.61,14.40366681]
[1764608328299,24.39674973,123.65,123.61,23.40366681]
[1764608328498,16.308864,123.65,123.62,0.69]
[1764608329518,20.21602129,123.67,123.63,5.62414492]
[1764608329519,30.67923713,123.67,123.63,5.62414492]
[1764608329707,25.05509221,123.67,123.63,5.62414492]
[1764608330015,30.67923713,123.67,123.64,0.69]
[1764608330212,16.968864,123.67,123.64,0.69]
[1764608330406,16.968864,123.67,123.64,8.77782647]
[1764608330911,22.59300892,123.67,123.64,0.69]
[1764608331519,16.308864,123.67,123.64,0.69]
[1764608332011,16.968864,123.67,123.64,0.69]
[1764608332218,22.59300892,123.67,123.64,0.69]
[1764608332911,22.59300892,123.67,123.64,8.77797184]
[1764608333120,16.308864,123.67,123.64,8.77797184]
[1764608334303,108.39326519,123.7,123.64,13.71211676]
[1764608334618,5.62414492,123.69,123.65,6.31414492]
[1764608334819,6.28414492,123.69,123.65,0.69]
[1764608335022,0.66,123.68,123.65,0.69]
[1764608335222,6.28414492,123.68,123.65,0.69]
[1764608335423,6.28414492,123.68,123.64,8.08797184]
[1764608335424,6.28414492,123.68,123.64,8.77797184]
[1764608335609,6.28414492,123.67,123.64,8.77797184]
[1764608335813,5.62414492,123.67,123.65,0.69]
[1764608336018,6.28414492,123.67,123.64,8.77797184]
[1764608337321,0.66,123.67,123.64,0.69]
[1764608337508,5.62414492,123.66,123.64,0.69]
[1764608338212,6.28414492,123.67,123.64,8.77798609]
[1764608338616,5.62414492,123.65,123.62,17.77897174]
[1764608339011,6.28414492,123.65,123.62,17.77897174]
[1764608339623,5.62414492,123.63,123.62,9.0]
[1764608340420,5.62414492,123.63,123.59,17.19091221]
[1764608340421,6.28414492,123.63,123.59,17.19091221]
[1764608340620,5.62414492,123.62,123.59,17.19091221]
[1764608340821,5.62414492,123.62,123.6,0.69]
[1764608341619,100.05596708,123.66,123.6,8.78056629]
[1764608341820,100.05596708,123.66,123.61,5.62414492]
[1764608341821,0.66,123.65,123.61,5.62414492]
[1764608342124,0.66,123.65,123.61,6.31414492]
[1764608342305,6.28414492,123.65,123.62,0.69]
[1764608342622,30.020112,123.66,123.62,14.40339193]
[1764608342834,30.680112,123.66,123.62,14.40339193]
[1764608343013,30.680112,123.66,123.63,0.67]
[1764608343210,17.018864,123.66,123.63,0.67]
[1764608343412,104.92419116,123.68,123.63,6.29414492]
[1764608343609,5.62414492,123.67,123.63,6.29414492]
[1764608343819,6.33414492,123.67,123.64,0.67]
[1764608344214,14.42025376,123.67,123.64,0.67]
[1764608344408,0.71,123.66,123.63,8.75831333]
[1764608344609,6.33414492,123.66,123.63,8.75831333]
[1764608345322,0.71,123.66,123.63,8.75831333]
[1764608346626,16.308864,123.68,123.64,0.67]
[1764608346927,0.71,123.67,123.64,0.67]
[1764608347109,6.33414492,123.67,123.64,0.67]
[1764608347310,6.33414492,123.67,123.64,8.75765251]
[1764608347515,0.71,123.67,123.64,8.75765251]
[1764608348928,6.33414492,123.67,123.64,8.08765251]
[1764608349128,6.33414492,123.67,123.64,8.75765251]
[1764608350309,5.62414492,123.65,123.62,9.67]
[1764608350509,0.71,123.65,123.62,17.08906003]
[1764608350735,6.33414492,123.66,123.63,0.67]
[1764608350905,6.33414492,123.66,123.62,17.75906003]
[1764608351108,0.71,123.65,123.62,17.75906003]
[1764608352220,0.71,123.65,123.62,17.08906003]
[1764608352532,0.71,123.66,123.63,0.67]
[1764608352829,0.71,123.66,123.63,6.29414492]
[1764608353012,0.71,123.66,123.63,0.67]
[1764608353230,0.71,123.66,123.63,8.75841588]
[1764608355335,14.42059913,123.67,123.64,0.67]
[1764608355547,0.71,123.67,123.64,0.67]
[1764608355834,6.33414492,123.67,123.63,13.7125608]
[1764608356037,0.71,123.67,123.64,0.67]
[1764608356225,6.33414492,123.67,123.64,0.67]
[1764608356426,14.4202747,123.67,123.64,0.67]
[1764608359121,0.71,123.66,123.64,0.67]
[1764608363235,8.08612978,123.67,123.64,0.67]
[1764608363428,0.71,123.66,123.64,0.67]
[1764608363630,0.71,123.66,123.63,13.71262008]
[1764608363820,0.71,123.66,123.64,0.67]
[1764608364618,14.4202747,123.67,123.64,0.67]
[1764608364813,13.7102747,123.67,123.64,0.67]
[1764608365024,0.71,123.66,123.63,13.71262008]
[1764608365223,0.71,123.66,123.64,0.67]
[1764608367742,13.7102747,123.67,123.64,0.67]
[1764608368055,0.71,123.66,123.64,0.67]
[1764608368719,6.33414492,123.66,123.64,0.67]
[1764608371842,0.71,123.66,123.64,0.67]
[1764608378550,4.30860897,123.66,123.62,17.088993]
[1764608378752,4.30860897,123.66,123.62,17.738993]
[1764608378944,0.66,123.65,123.62,17.738993]
[1764608379346,0.66,123.65,123.63,0.65]
[1764608379547,3.59860897,123.66,123.63,0.65]
[1764608379748,4.25860897,123.66,123.63,0.65]
[1764608380138,4.25860897,123.66,123.63,8.73848034]
[1764608381055,3.59860897,123.64,123.6,8.74061488]
[1764608381268,3.59860897,123.64,123.6,17.72061488]
[1764608381557,3.59860897,123.64,123.61,0.65]
[1764608381558,4.25860897,123.64,123.61,0.65]
[1764608382255,8.08668269,123.67,123.62,3.59860897]
[1764608382448,8.08668269,123.67,123.63,3.59860897]
[1764608382449,12.34529166,123.67,123.63,3.59860897]
[1764608382649,11.68529166,123.67,123.62,4.24860897]
[1764608382839,0.66,123.66,123.62,4.24860897]
[1764608383035,0.66,123.66,123.63,0.65]
[1764608383235,0.66,123.66,123.63,8.73831725]
[1764608384051,12.34529166,123.67,123.64,0.65]
[1764608384559,4.25860897,123.67,123.64,0.65]
[1764608384939,0.66,123.66,123.64,0.65]
[1764608385559,3.59860897,123.67,123.64,8.73766113]
[1764608385757,0.66,123.68,123.65,3.59860897]
[1764608385964,0.66,123.68,123.65,0.65]
[1764608386861,0.66,123.68,123.65,8.73712981]
[1764608387062,4.25860897,123.68,123.65,8.73712981]
[1764608388850,0.66,123.68,123.66,1.0]
[1764608389240,0.66,123.68,123.66,1.65]
[1764608389661,3.59860897,123.68,123.66,1.65]
[1764608389852,28.65268318,123.69,123.66,1.65]
[1764608390165,20.56747297,123.69,123.66,1.65]
[1764608390472,16.308864,123.69,123.67,0.65]
[1764608392453,16.308864,123.69,123.67,8.73592784]
[1764608392658,16.308864,123.71,123.67,12.33453681]
[1764608392859,0.66,123.76,123.7,3.59860897]
[1764608393060,4.25860897,123.76,123.71,8.98]
[1764608393259,0.66,123.75,123.71,12.57860897]
[1764608393468,0.66,123.75,123.72,0.65]
[1764608393782,0.66,123.75,123.72,4.24860897]
[1764608393945,0.66,123.75,123.73,11.68062399]
[1764608394144,0.66,123.75,123.73,8.08201502]
[1764608394347,0.66,123.75,123.72,8.73247176]
[1764608394648,0.66,123.75,123.72,12.33108073]
[1764608395260,0.66,123.77,123.74,3.59860897]
[1764608396072,0.66,123.77,123.74,11.68003684]
[1764608396894,3.59860897,123.76,123.72,13.22860897]
[1764608397259,0.66,123.75,123.72,13.22860897]
[1764608397454,3.59860897,123.77,123.73,0.65]
[1764608397660,4.25860897,123.77,123.72,8.98]
[1764608397890,4.25860897,123.76,123.72,13.22860897]
[1764608398265,4.25860897,123.76,123.73,8.08211428]
[1764608398900,4.25860897,123.76,123.73,8.73211428]
[1764608399184,0.66,123.75,123.73,8.73211428]
[1764608399588,4.25860897,123.76,123.73,8.73211428]
[1764608399790,0.66,123.76,123.73,8.73211428]
[1764608400083,91.308864,123.78,123.74,0.65]
[1764608400260,16.968864,123.78,123.74,0.65]
[1764608400589,0.66,123.77,123.74,0.65]
[1764608401092,16.308864,123.78,123.75,3.59146693]
[1764608401258,3.59146693,123.79,123.75,3.59146693]
[1764608401453,3.59146693,123.79,123.73,37.26739998]
[1764608401454,9.46994492,123.81,123.77,3.59146693]
[1764608401672,9.46994492,123.81,123.76,13.22146693]
[1764608401871,3.59146693,123.79,123.76,8.98]
[1764608402076,3.59146693,123.77,123.73,41.50886691]
[1764608402383,16.308864,123.79,123.76,3.59146693]
[1764608402760,19.90033093,123.79,123.75,3.59146693]
[1764608402986,0.66,123.78,123.75,4.24146693]
[1764608403369,0.72,123.81,123.77,3.59146693]
[1764608403672,16.308864,123.8,123.79,3.59146693]
[1764608403979,0.92,123.82,123.78,3.59146693]
[1764608404183,4.31146693,123.81,123.78,8.07884957]
[1764608404567,4.31146693,123.8,123.78,8.07884957]
[1764608405165,0.72,123.8,123.78,8.07884957]
[1764608405565,4.31146693,123.8,123.78,8.07884957]
[1764608405767,3.59146693,123.79,123.77,8.07920811]
[1764608405966,0.72,123.79,123.77,8.07920811]
[1764608406782,19.90033093,123.78,123.74,9.67]
[1764608407285,0.72,123.77,123.74,9.67]
[1764608407786,16.308864,123.76,123.74,3.59146693]
[1764608407973,16.308864,123.76,123.73,8.98]
[1764608408171,17.028864,123.76,123.74,8.08146112]
[1764608408372,16.308864,123.76,123.74,8.08146112]
[1764608408571,17.028864,123.76,123.74,8.08146112]
[1764608409077,17.028864,123.76,123.74,11.67292805]
[1764608409078,16.308864,123.76,123.74,11.67292805]
[1764608409279,4.31146693,123.78,123.74,8.77146112]
[1764608409472,20.62033093,123.78,123.74,8.77146112]
[1764608409676,20.62033093,123.78,123.74,12.36292805]
[1764608409677,0.72,123.77,123.74,12.36292805]
[1764608410083,16.308864,123.78,123.75,0.69]
[1764608410279,17.028864,123.78,123.75,0.69]
[1764608410799,17.028864,123.78,123.76,3.59146693]
[1764608410800,16.308864,123.78,123.76,3.59146693]
[1764608411089,0.72,123.8,123.77,4.28146693]
[1764608411090,16.308864,123.79,123.77,4.28146693]
[1764608411983,0.2,123.82,123.78,0.69]
[1764608412310,13.12141185,123.81,123.76,8.76985407]
[1764608412595,13.12141185,123.81,123.75,3.59146693]
[1764608412596,19.90033093,123.79,123.75,3.59146693]
[1764608412985,0.72,123.78,123.75,4.28146693]
[1764608413190,0.72,123.78,123.75,0.69]
[1764608413486,16.308864,123.77,123.74,20.65262582]
[1764608413698,16.308864,123.77,123.74,13.26146693]
[1764608413992,17.028864,123.77,123.74,21.3428808]
[1764608414176,17.028864,123.77,123.74,17.75141387]
[1764608414370,17.028864,123.77,123.75,3.59146693]
[1764608414371,16.308864,123.77,123.75,3.59146693]
[1764608414570,16.308864,123.77,123.74,17.06084327]
[1764608414571,16.308864,123.77,123.76,0.69]
[1764608414992,9.52994492,123.81,123.76,4.28146693]
[1764608415294,0.2,123.82,123.79,3.59146693]
[1764608415676,0.92,123.82,123.79,4.28146693]
[1764608416177,16.308864,123.81,123.79,4.28146693]
[1764608416394,0.2,123.82,123.8,4.28146693]
[1764608416579,0.2,123.82,123.81,4.28146693]
[1764608416891,16.508864,123.82,123.8,3.59146693]
[1764608417076,17.228864,123.82,123.79,4.28146693]
[1764608417671,16.508864,123.82,123.79,0.69]
[1764608417973,17.228864,123.82,123.79,0.69]
[1764608418174,16.508864,123.82,123.79,0.69]
[1764608418378,16.508864,123.82,123.8,8.07754442]
[1764608418575,16.508864,123.82,123.8,11.66901135]
[1764608418795,16.508864,123.82,123.8,8.76754442]
[1764608418990,16.508864,123.82,123.8,0.69]
[1764608419696,16.508864,123.82,123.79,8.078017]
[1764608419878,16.508864,123.82,123.8,0.69]
[1764608420596,16.508864,123.82,123.8,8.76731737]
[1764608421779,16.508864,123.82,123.81,0.69]
[1764608422885,0.2,123.82,123.81,0.69]
[1764608423696,0.2,123.82,123.8,8.07731737]
[1764608423894,0.2,123.82,123.8,8.76731737]
[1764608424316,4.31146693,123.81,123.79,8.07816516]
[1764608424481,4.31146693,123.81,123.78,20.19686749]
[1764608424482,3.59146693,123.81,123.78,17.74877013]
[1764608424681,3.59146693,123.81,123.79,0.69]
[1764608424897,3.59146693,123.81,123.78,17.74877013]
[1764608425184,3.79146693,123.82,123.78,17.74877013]
[1764608425388,0.72,123.81,123.78,17.74877013]
[1764608425575,0.92,123.82,123.78,21.34023706]
[1764608425776,0.72,123.81,123.78,21.34023706]
[1764608425980,0.72,123.81,123.78,17.74877013]
[1764608426593,0.72,123.81,123.78,21.34023706]
[1764608426901,0.72,123.81,123.78,17.74877013]
[1764608427108,16.508864,123.82,123.79,4.28146693]
[1764608427494,16.508864,123.82,123.8,0.69]
[1764608428104,16.508864,123.82,123.8,8.76718402]
[1764608428478,4.31146693,123.81,123.79,17.03789488]
[1764608428683,4.31146693,123.81,123.79,8.96]
[1764608430079,4.31146693,123.8,123.74,20.2024332]
[1764608430284,16.308864,123.77,123.74,9.66]
[1764608430913,16.308864,123.77,123.75,0.7]
[1764608431126,75.0,123.81,123.75,0.7]
[1764608431342,100.21248147,123.82,123.77,3.59146693]
[1764608431343,4.51146693,123.82,123.77,3.59146693]
[1764608431618,16.308864,123.8,123.77,12.55146693]
[1764608431809,16.308864,123.8,123.78,0.7]
[1764608432109,16.308864,123.8,123.78,8.77877308]
[1764608432311,16.308864,123.8,123.77,17.73912899]
[1764608432624,16.308864,123.8,123.78,0.7]
[1764608432786,17.028864,123.8,123.77,20.63059592]
[1764608432985,17.028864,123.8,123.77,17.03912899]
[1764608433181,17.028864,123.8,123.77,20.63059592]
[1764608433693,16.308864,123.81,123.78,3.59146693]
[1764608433893,16.308864,123.81,123.77,37.23788474]
[1764608434090,16.308864,123.81,123.79,8.07819694]
[1764608434814,16.308864,123.81,123.8,8.96]
[1764608434999,0.2,123.82,123.8,9.66]
[1764608435000,16.508864,123.82,123.8,9.66]
[1764608435509,0.2,123.82,123.8,9.66]
[1764608436115,0.2,123.82,123.81,12.36835894]
[1764608436503,0.2,123.84,123.81,34.57442404]
[1764608436701,0.2,123.84,123.82,0.7]
[1764608437009,0.2,123.84,123.83,8.96]
[1764608437412,0.2,123.84,123.83,15.26530201]
[1764608438312,0.2,123.84,123.83,23.3408895]
[1764608438917,0.2,123.84,123.83,23.48305107]
[1764608439210,1e-08,123.84,123.83,32.29299599]
[1764608440334,0.2,123.88,123.84,8.95210649]
[1764608440509,0.2,123.88,123.87,5.60530201]
[1764608440709,0.2,123.88,123.87,14.56530201]
[1764608440923,0.2,123.88,123.87,15.26530201]
[1764608441427,0.2,123.88,123.87,15.40746358]
[1764608442350,0.2,123.88,123.87,17.8751413]
[1764608442627,0.2,123.91,123.89,0.14216157]
[1764608442927,1e-08,123.93,123.92,0.14216157]
[1764608443129,1e-08,123.93,123.92,15.40746358]
[1764608443325,1e-08,123.93,123.92,0.84216157]
[1764608443530,1e-08,123.93,123.92,14.56530201]
[1764608444028,1e-08,123.93,123.92,15.26530201]
[1764608444422,1e-08,123.93,123.92,23.33502441]
[1764608444624,1e-08,123.93,123.92,17.0297224]
[1764608444823,1e-08,123.93,123.92,8.0697224]
[1764608445026,0.69000001,123.93,123.92,8.0697224]
[1764608446136,6.29530202,123.93,123.91,8.96]
[1764608446328,5.60530201,123.92,123.91,8.96]
[1764608446529,6.29530201,123.92,123.9,8.07102502]
[1764608446729,0.69,123.91,123.9,8.07102502]
[1764608447040,0.69,123.91,123.86,56.81913897]
[1764608447041,6.29530201,123.91,123.86,20.18353167]
[1764608447242,6.29530201,123.91,123.87,8.96]
[1764608447446,0.69,123.9,123.87,8.96]
[1764608447656,0.69,123.9,123.87,14.56530201]
[1764608448238,0.69,123.9,123.88,8.07232805]
[1764608449027,8.80994493,123.93,123.89,8.96]
[1764608449226,0.69,123.92,123.89,8.96]
[1764608449428,6.29530201,123.92,123.89,8.96]
[1764608449827,0.69,123.91,123.89,14.56530201]
[1764608450034,0.69,123.91,123.89,8.96]
[1764608450332,0.69,123.91,123.89,17.03127046]
[1764608450733,0.69,123.91,123.89,8.96]
[1764608451134,0.69,123.91,123.89,17.0314717]
[1764608451554,0.69,123.91,123.89,8.96]
[1764608451761,0.69,123.91,123.89,17.03133847]
[1764608452250,0.69,123.92,123.89,37.21052968]
[1764608453338,6.29530201,123.92,123.89,37.21052968]
[1764608453533,6.29530201,123.92,123.89,17.03133847]
[1764608453847,6.29530201,123.91,123.89,17.03133847]
[1764608454853,0.69,123.9,123.89,17.03133847]
[1764608455189,6.29530201,123.9,123.89,8.96]
[1764608455858,6.29530201,123.9,123.86,17.03328337]
[1764608456068,6.29530201,123.89,123.86,17.03328337]
[1764608456366,0.69,123.88,123.86,17.03328337]
[1764608456544,0.69,123.9,123.86,42.82266417]
[1764608456852,6.29530201,123.91,123.86,43.52266417]
[1764608457246,0.69,123.9,123.86,43.52266417]
[1764608457446,6.29530201,123.9,123.86,42.82266417]
[1764608458053,0.69,123.89,123.86,43.52266417]
[1764608458437,0.69,123.91,123.87,6.30530201]
[1764608458634,0.69,123.91,123.88,8.96]
[1764608458838,6.29530201,123.91,123.88,17.03169814]
[1764608459043,16.998864,123.92,123.89,5.60530201]
[1764608459248,16.308864,123.92,123.9,8.96]
[1764608459464,0.69,123.92,123.9,14.56530201]
[1764608459668,1e-08,123.93,123.9,15.26530201]
[1764608459864,0.69000001,123.93,123.91,5.60530201]
[1764608460373,0.69000001,123.93,123.92,8.96]
[1764608461065,1e-08,123.93,123.92,17.0297224]
[1764608461376,1e-08,123.93,123.92,32.62054986]
[1764608461579,1e-08,123.93,123.92,33.32054986]
[1764608461752,1e-08,123.93,123.92,32.62054986]
[1764608462153,1e-08,123.93,123.92,33.32054986]
[1764608462450,0.39000001,123.96,123.93,0.7]
[1764608462771,0.2,123.97,123.94,8.96]
[1764608462955,0.2,123.97,123.96,23.65794588]
[1764608463156,0.2,123.98,123.96,41.57005237]
[1764608463357,0.2,123.98,123.97,16.31082746]
[1764608463559,0.2,124.01,123.97,25.41298903]
[1764608463877,0.2,124.01,124.0,15.59082746]
[1764608464075,0.2,124.01,124.0,24.55082746]
[1764608464263,0.2,124.01,124.0,25.27082746]
[1764608464462,0.2,124.01,124.0,33.33534358]
[1764608464664,0.2,124.01,124.0,32.61534358]
[1764608465055,0.2,124.01,124.0,33.33534358]
[1764608465260,1e-08,124.01,124.0,33.47750515]
[1764608465476,0.67,124.08,124.01,8.95210649]
[1764608465777,32.56969146,124.08,124.02,8.96]
[1764608465960,16.26082746,124.08,124.02,9.68]
[1764608466161,0.67,124.07,124.04,15.59082746]
[1764608466357,0.67,124.07,124.05,8.96]
[1764608466565,16.978864,124.07,124.06,8.06061583]
[1764608466963,16.978864,124.07,124.05,8.96]
[1764608466964,32.56969146,124.07,124.05,8.96]
[1764608467265,0.67,124.06,124.04,17.02137792]
[1764608468585,31.89969146,124.07,124.04,32.61220538]
[1764608468586,16.308864,124.07,124.04,32.61220538]
[1764608468766,0.1,124.1,124.05,15.59082746]
[1764608468967,0.77,124.1,124.07,15.59082746]
[1764608469275,0.1,124.1,124.08,25.27082746]
[1764608469582,0.1,124.1,124.09,15.59082746]
[1764608469988,0.1,124.1,124.09,16.31082746]
[1764608470376,0.1,124.1,124.08,8.96]
[1764608470569,0.77,124.1,124.07,20.14832593]
[1764608470770,0.1,124.1,124.08,32.60991369]
[1764608471169,0.1,124.1,124.09,15.59082746]
[1764608471376,1e-08,124.1,124.09,16.31082746]
[1764608471572,1e-08,124.1,124.09,25.12077238]
[1764608471788,16.308864,124.16,124.1,8.80994492]
[1764608472084,0.67,124.19,124.13,0.14216157]
[1764608472394,0.67,124.19,124.14,8.96]
[1764608472764,0.67,124.19,124.15,15.59082746]
[1764608472968,16.308864,124.18,124.15,15.59082746]
[1764608473171,16.308864,124.18,124.16,15.59082746]
[1764608473374,16.978864,124.18,124.16,15.59082746]
[1764608473568,16.308864,124.18,124.16,15.59082746]
[1764608473807,0.67,124.17,124.16,15.59082746]
[1764608474167,16.308864,124.18,124.16,15.59082746]
[1764608474370,16.308864,124.18,124.17,15.59082746]
[1764608474593,0.87,124.2,124.18,8.05282654]
[1764608474793,0.87,124.2,124.18,23.643654]
[1764608474983,17.178864,124.2,124.18,23.643654]
[1764608475380,17.178864,124.2,124.17,8.96]
[1764608475381,0.67,124.19,124.17,8.96]
[1764608475980,0.2,124.2,124.17,24.55082746]
[1764608476180,0.2,124.2,124.19,15.59082746]
[1764608476678,0.2,124.2,124.19,24.36300557]
[1764608477078,0.2,124.2,124.19,15.59082746]
[1764608477296,0.2,124.2,124.19,33.32300557]
[1764608477500,0.2,124.2,124.19,33.46516714]
[1764608477881,0.2,124.2,124.19,24.50516714]
[1764608478186,0.2,124.2,124.19,17.01217811]
[1764608478392,0.2,124.2,124.19,32.60300557]
[1764608478588,0.87,124.2,124.16,8.05412371]
[1764608478794,0.87,124.2,124.17,24.55082746]
[1764608479008,0.2,124.2,124.19,15.59082746]
[1764608479302,0.2,124.2,124.19,24.69298903]
[1764608479597,0.2,124.2,124.19,25.41298903]
[1764608479797,0.2,124.2,124.19,16.45298903]
[1764608479974,0.2,124.2,124.19,34.22293395]
[1764608480803,1e-08,124.2,124.19,42.27511206]
[1764608480998,1e-08,124.2,124.19,24.50516714]
[1764608481186,1e-08,124.2,124.19,17.01217811]
[1764608481392,1e-08,124.2,124.19,33.32300557]
[1764608481589,1e-08,124.2,124.19,8.05217811]
[1764608481781,0.67000001,124.2,124.18,17.0127652]
[1764608481982,1e-08,124.2,124.18,32.60359266]
[1764608482910,0.67000001,124.2,124.17,24.55082746]
[1764608483103,32.56969147,124.2,124.15,8.05477245]
[1764608483412,15.59082746,124.19,124.17,8.96]
[1764608483584,0.67,124.19,124.17,8.96]